fUSD/lending_fUSD_20250115
["ID","MTS","AMOUNT","RATE_DAILY","PERIOD"]
[349045359,1736949062386,-539.58,0.00036712,7]
[349045360,1736949062395,-587.14,0.00036712,7]
[349045361,1736949062405,-500.0,0.00036712,7]
[349045362,1736949062415,-609.52,0.00036712,7]
[349045363,1736949062425,-538.64,0.00036712,7]
[349045364,1736949062434,-550.45,0.00036712,7]
[349045365,1736949062444,-500.0,0.00036712,7]
[349045366,1736949062453,-647.15,0.00036712,7]
[349045367,1736949062463,-500.0,0.00036712,7]
[349045368,1736949062473,-500.0,0.00036712,7]
[349045369,1736949062482,-500.0,0.00036712,7]
[349045370,1736949062491,-227.4,0.00036795,120]
[349045371,1736949062501,-151.0,0.00036904,120]
[349045372,1736949062510,-500.0,0.00036986,60]
[349045373,1736949062519,-500.0,0.00036986,60]
[349045374,1736949062531,-873.59,0.00036986,7]
[349045375,1736949062540,-614.31,0.00036986,7]
[349045376,1736949062550,-500.0,0.00036986,7]
[349045377,1736949062561,-587.14,0.00036986,7]
[349045378,1736949062570,-534.61,0.00036986,7]
[349045379,1736949062580,-609.52,0.00036986,7]
[349045380,1736949062590,-538.64,0.00036986,7]
[349045381,1736949062600,-282.04691506,0.00036986,7]
[349045382,1736949062609,-647.15,0.00036986,7]
[349045383,1736949062618,-500.0,0.00036986,7]
[349045384,1736949062628,-500.0,0.00036986,7]
[349045385,1736949062638,-500.0,0.00036986,7]
[349045386,1736949062647,-12257.0,0.00037,117]
[349045387,1736949062657,-873.59,0.0003726,7]
[349045388,1736949062666,-614.31,0.0003726,7]
[349045389,1736949062676,-496.16,0.0003726,7]
[349045390,1736949062686,-587.14,0.0003726,7]
[349045391,1736949062695,-609.52,0.0003726,7]
[349045392,1736949062704,-538.64,0.0003726,7]
[349045393,1736949062713,-647.15,0.0003726,7]
[349045394,1736949062723,-500.0,0.0003726,7]
[349045395,1736949062732,-500.0,0.0003726,7]
[349045396,1736949062743,-500.0,0.0003726,7]
[349045397,1736949062752,-2966.89473381,0.00037312,2]
[349045398,1736949062762,-873.59,0.00037534,7]
[349045399,1736949062772,-614.31,0.00037534,7]
[349045400,1736949062786,-587.14,0.00037534,7]
[349045401,1736949062795,-609.52,0.00037534,7]
[349045402,1736949062804,-538.64,0.00037534,7]
[349045403,1736949062814,-647.15,0.00037534,7]
[349045404,1736949062823,-500.0,0.00037534,7]
[349045405,1736949062833,-500.0,0.00037534,7]
[349045406,1736949062843,-500.0,0.00037534,7]
[349045407,1736949062852,-227.4,0.00037644,120]
[349045408,1736949062861,-3000.0,0.000378,2]
[349045409,1736949062871,-873.59,0.00037808,7]
[349045410,1736949062881,-614.31,0.00037808,7]
[349045411,1736949062891,-587.14,0.00037808,7]
[349045412,1736949062900,-609.52,0.00037808,7]
[349045413,1736949062909,-538.64,0.00037808,7]
[349045414,1736949062919,-647.15,0.00037808,7]
[349045415,1736949062928,-500.0,0.00037808,7]
[349045416,1736949062938,-500.0,0.00037808,7]
[349045417,1736949062947,-500.0,0.00037808,7]
[349045418,1736949062957,-176.64,0.00037877,2]
[349045419,1736949062966,-178.729,0.0003789,120]
[349045420,1736949062976,-151.0,0.0003789,120]
[349045421,1736949062986,-49979.95381543,0.00037998,120]
[349045422,1736949062995,-40550.5545416,0.00038,120]
[349045423,1736949063081,-818.4232,0.00038,120]
[349045424,1736949063093,-3658.05804996,0.00038,120]
[349045425,1736949063105,-322.39755096,0.00038,120]
[349045426,1736949063117,-10343.04473041,0.00038,120]
[349045427,1736949063129,-5949.9640026,0.00038,120]
[349045428,1736949063140,-3445.113,0.00038,120]
[349045429,1736949063152,-3977.33999999,0.00038,120]
[349045430,1736949063164,-676.86510471,0.00038,120]
[349045431,1736949063176,-9108.92463828,0.00038,120]
[349045432,1736949063187,-261.37713494,0.00038,120]
[349045433,1736949063203,-20127.42405,0.00038,120]
[349045434,1736949063215,-35985.69326355,0.00038,120]
[349045435,1736949063225,-873.59,0.00038082,7]
[349045436,1736949063235,-614.31,0.00038082,7]
[349045437,1736949063247,-587.14,0.00038082,7]
[349045438,1736949063258,-609.52,0.00038082,7]
[349045439,1736949063267,-538.64,0.00038082,7]
[349045440,1736949063280,-647.15,0.00038082,7]
[349045441,1736949063290,-244.43,0.00038082,7]
[349045442,1736949063299,-259.69649006,0.00038082,7]
[349045443,1736949063310,-500.0,0.00038082,7]
[349045444,1736949063321,-500.0,0.00038082,60]
[349045445,1736949063331,-200.0,0.00038082,60]
[349045446,1736949063341,-1431.25117755,0.0003821,2]
[349045447,1736949063351,-864.86,0.00038301,2]
[349045448,1736949063362,-873.59,0.00038356,7]
[349045449,1736949063373,-614.31,0.00038356,7]
[349045450,1736949063384,-587.14,0.00038356,7]
[349045451,1736949063394,-1974.2773489,0.00038356,30]
[349045452,1736949063404,-609.52,0.00038356,7]
[349045453,1736949063414,-538.64,0.00038356,7]
[349045454,1736949063424,-647.15,0.00038356,7]
[349045455,1736949063434,-388.16,0.00038356,7]
[349045456,1736949063444,-200.0,0.00038356,60]
[349045457,1736949063454,-227.4,0.00038493,120]
[349045458,1736949063464,-2552.35783661,0.00038494,10]
[349045459,1736949063475,-408.90640333,0.0003863,7]
[349045460,1736949063488,-464.68359667,0.0003863,7]
[349045461,1736949063498,-614.31,0.0003863,7]
[349045462,1736949063507,-587.14,0.0003863,7]
[349045463,1736949063517,-609.52,0.0003863,7]
[349045464,1736949063529,-538.64,0.0003863,7]
[349045465,1736949063539,-647.15,0.0003863,7]
[349045466,1736949063551,-7538.84330333,0.000388,120]
[349045467,1736949063568,-161.44834,0.000314,120]
[349045468,1736949063578,-92461.15669667,0.000388,120]
[349045469,1736949063588,-151.0,0.00038877,120]
[349045470,1736949063598,-20000.0,0.00038885,30]
[349045471,1736949063608,-37068.98506466,0.000389,120]
[349045472,1736949063618,-873.59,0.00038904,7]
[349045473,1736949063628,-614.31,0.00038904,7]
[349045474,1736949063638,-587.14,0.00038904,7]
[349045475,1736949063648,-609.52,0.00038904,7]
[349045476,1736949063658,-538.64,0.00038904,7]
[349045477,1736949063668,-647.15,0.00038904,7]
[349045478,1736949063678,-302.0265364,0.00038905,4]
[349045479,1736949063688,-13483.8,0.00038909,117]
[349045480,1736949063697,-150.5,0.00038977,120]
[349045481,1736949063707,-151.60496544,0.00038981,2]
[349045482,1736949063717,-4116.37653396,0.00038981,2]
[349045483,1736949063727,-339.12434042,0.00038981,2]
[349045484,1736949063736,-201.35516978,0.00038981,7]
[349045485,1736949063746,-150.5,0.00038987,120]
[349045486,1736949063755,-150.5,0.00038997,120]
[349045487,1736949063765,-21236.38077685,0.00039,120]
[349045488,1736949063780,-1070.86724111,0.00039,120]
[349045489,1736949063790,-500.0,0.00039006,7]
[349045490,1736949063801,-439233.05124656,0.00039007,120]
[349045491,1736949063814,-316813.83978512,0.00039007,120]
[349045492,1736949063830,-150.0,0.00025153,2]
[349045493,1736949063841,-485.615694,0.00039007,120]
[349045494,1736949063854,-1974.0,0.00039007,120]
[349045495,1736949063871,-151.822,0.00025153,2]
[349045496,1736949063882,-3215.2693061,0.00039007,120]
[349045497,1736949063894,-500.0,0.00039007,120]
[349045498,1736949063907,-4858.26002071,0.00039007,120]
[349045499,1736949063920,-3766.52690318,0.00039007,120]
[349045500,1736949063931,-1076.0,0.00039007,120]
[349045501,1736949064055,-158.44251436,0.00021515,2]
[349045502,1736949064066,-150.0,0.00028153,2]
[349045503,1736949064076,-150.0,0.00028153,2]
[349045504,1736949064085,-150.0,0.00030137,7]
[349045505,1736949064095,-470.43935122,0.00039007,120]
[349045506,1736949064107,-170532.9619653,0.00039007,120]
[349045507,1736949064118,-846.0,0.00039007,120]
[349045508,1736949064130,-54126.23200535,0.00039007,120]
[349045509,1736949064142,-20217.45842675,0.00039007,120]
[349045510,1736949064154,-41037.0736277,0.00039007,120]
[349045511,1736949064166,-9276.86799913,0.00039007,120]
[349045512,1736949064177,-2282.0000001,0.00039007,120]
[349045513,1736949064190,-309.84559547,0.00039007,120]
[349045514,1736949064202,-6292.55460327,0.00039007,120]
[349045515,1736949064214,-635.0,0.00039007,120]
[349045516,1736949064226,-2090.69255267,0.00039007,120]
[349045517,1736949064239,-687.90053722,0.00039007,120]
[349045518,1736949064263,-602255.07371777,0.00039007,120]
[349045519,1736949064279,-213424.60235067,0.00039007,120]
[349045520,1736949064291,-2500.0,0.00039081,120]
[349045521,1736949064301,-500.0,0.00039143,7]
[349045522,1736949064312,-873.74,0.00039178,7]
[349045523,1736949064323,-614.37,0.00039178,7]
[349045524,1736949064335,-609.69,0.00039178,7]
[349045525,1736949064345,-538.72,0.00039178,7]
[349045526,1736949064355,-647.38,0.00039178,7]
[349045527,1736949064364,-500.0,0.00039178,60]
[349045528,1736949064374,-2500.0,0.0003923,120]
[349045529,1736949064384,-500.0,0.0003928,7]
[349045530,1736949064394,-2500.0,0.00039303,120]
[349045531,1736949064404,-227.4,0.00039342,120]
[349045532,1736949064414,-2500.0,0.00039366,120]
[349045533,1736949064423,-2500.0,0.00039397,120]
[349045534,1736949064434,-253.52251325,0.000394,30]
[349045535,1736949064443,-500.0,0.00039417,7]
[349045536,1736949064453,-2500.0,0.00039517,120]
[349045537,1736949064463,-2500.0,0.00039521,120]
[349045538,1736949064473,-1891.6186,0.00039527,3]
[349045539,1736949064482,-2500.0,0.00039552,120]
[349045540,1736949064492,-500.0,0.00039554,7]
[349045541,1736949064502,-200.0,0.00039573,14]
[349045542,1736949064511,-896.85029388,0.00039575,14]
[349045543,1736949064521,-896.85029388,0.00039583,14]
[349045544,1736949064535,-896.85029388,0.00039586,14]
[349045545,1736949064545,-1315.46547207,0.00039587,14]
[349045546,1736949064555,-1315.46547207,0.0003959,14]
[349045547,1736949064564,-200.0,0.00039592,14]
[349045548,1736949064574,-439.99,0.000396,30]
[349045549,1736949064584,-200.0,0.00039603,14]
[349045550,1736949064593,-560.6763401,0.00039604,14]
[349045551,1736949064603,-200.0,0.00039607,14]
[349045552,1736949064612,-560.6763401,0.00039613,14]
[349045553,1736949064622,-1315.46547207,0.00039613,14]
[349045554,1736949064631,-560.6763401,0.00039617,14]
[349045555,1736949064641,-896.85029388,0.00039619,14]
[349045556,1736949064651,-896.85029388,0.00039625,14]
[349045557,1736949064661,-2919.41175887,0.00039626,14]
[349045558,1736949064670,-1315.46547207,0.0003963,14]
[349045559,1736949064680,-1315.46547207,0.00039637,14]
[349045560,1736949064689,-1315.46547207,0.00039653,14]
[349045561,1736949064699,-200.0,0.00039654,14]
[349045562,1736949064708,-2919.41175887,0.00039657,14]
[349045563,1736949064718,-2919.41175887,0.0003966,14]
[349045564,1736949064728,-2919.41175887,0.00039666,14]
[349045565,1736949064738,-2919.41175887,0.00039667,14]
[349045566,1736949064748,-560.6763401,0.00039669,14]
[349045567,1736949064757,-2919.41175887,0.00039669,14]
[349045568,1736949064768,-300.0,0.0003967,2]
[349045569,1736949064784,-400.0,0.0003967,2]
[349045570,1736949064795,-560.6763401,0.00039674,14]
[349045571,1736949064806,-896.85029388,0.00039677,14]
[349045572,1736949064819,-560.6763401,0.00039682,14]
[349045573,1736949064830,-500.0,0.00039691,7]
[349045574,1736949064842,-1427.0,0.000397,7]
[349045575,1736949064852,-3000.0,0.000397,2]
[349045576,1736949064863,-858.3361,0.000397,2]
[349045577,1736949064874,-858.3361,0.000397,2]
[349045578,1736949064885,-3000.0,0.000397,60]
[349045579,1736949064896,-1431.25117755,0.00039728,2]
[349045580,1736949064907,-500.0,0.00039799,120]
[349045581,1736949064917,-113986.94308891,0.000398,120]
[349045582,1736949064927,-5200.0,0.000398,120]
[349045583,1736949064937,-1058.0,0.000398,5]
[349045584,1736949064947,-5000.0,0.00039807,120]
[349045585,1736949064957,-1309.24,0.00039811,120]
[349045586,1736949064967,-2680.77,0.00039814,120]
[349045587,1736949064977,-500.0,0.00039828,7]
[349045588,1736949064987,-151.0,0.00039863,120]
[349045589,1736949064997,-641.4,0.00039872,120]
[349045590,1736949065007,-426.0,0.00039886,120]
[349045591,1736949065017,-30000.0,0.000399,30]
[349045592,1736949065032,-100000.0,0.000399,120]
[349045593,1736949065042,-46002.07206498,0.000399,15]
[349045594,1736949065051,-2966.89473381,0.000399,15]
[349045595,1736949065061,-2458.505,0.00039917,56]
[349045596,1736949065071,-5000.0,0.00039926,120]
[349045597,1736949065080,-2185.23,0.00039936,120]
[349045598,1736949065090,-500.0,0.00039965,7]
[349045599,1736949065101,-2543.11,0.00039984,120]
[349045600,1736949065110,-192843.92109616,0.00039998,120]
[349045601,1736949065120,-4043.89831835,0.00039998,120]
[349045602,1736949065130,-1000.0,0.00039999,120]
[349045603,1736949065140,-213.05422431,0.00039999,31]
[349045604,1736949065150,-374.86616781,0.0004,2]
[349045605,1736949065159,-210.10002663,0.0004,2]
[349045606,1736949065169,-400.87544851,0.0004,7]
[349045607,1736949065179,-928.37509037,0.0004,7]
[349045608,1736949065189,-946.37165811,0.0004,20]
[349045609,1736949065199,-1319.79279203,0.0004,7]
[349045610,1736949065209,-18261.5838016,0.0004,14]
[349045611,1736949065219,-1184.36444075,0.0004,12]
[349045612,1736949065229,-26720.67136611,0.0004,10]
[349045613,1736949065239,-377.6896681,0.0004,5]
[349045614,1736949065251,-4201.32491174,0.0004,6]
[349045615,1736949065261,-5000.0007514,0.0004,7]
[349045616,1736949065270,-1632.99867369,0.0004,120]
[349045617,1736949065283,-1000.0,0.0004,120]
[349045618,1736949065293,-477.12749073,0.0004,30]
[349045619,1736949065303,-3686.38426416,0.0004,30]
[349045620,1736949065312,-1863.49350977,0.0004,30]
[349045621,1736949065321,-192.54308014,0.0004,30]
[349045622,1736949065332,-1185.44599908,0.0004,120]
[349045623,1736949065342,-477.78244503,0.0004,120]
[349045624,1736949065351,-2940.86099456,0.0004,120]
[349045625,1736949065361,-3948.76188661,0.0004,120]
[349045626,1736949065371,-197927.56087183,0.0004,120]
[349045627,1736949065384,-286.069997,0.0004,120]
[349045628,1736949065396,-1306.4500735,0.0004,120]
[349045629,1736949065407,-23889.75969828,0.0004,120]
[349045630,1736949065417,-5973.27444502,0.0004,60]
[349045631,1736949065427,-269.08849676,0.0004,30]
[349045632,1736949065438,-5114.86323523,0.0004,30]
[349045633,1736949065447,-14044.10141683,0.0004,120]
[349045634,1736949065487,-158.44251436,0.00023261,2]
[349045635,1736949065497,-243.04548584,0.00025153,2]
[349045636,1736949065509,-251.89229333,0.00025153,2]
[349045637,1736949065526,-565.76122083,0.00025153,2]
[349045638,1736949065535,-583.41,0.00032876,7]
[349045639,1736949065545,-5096.02094928,0.0004,120]
[349045640,1736949065558,-310.34826355,0.0004,120]
[349045641,1736949065569,-1072.39244056,0.0004,120]
[349045642,1736949065582,-5325.97148563,0.0004,120]
[349045643,1736949065595,-1200.58939763,0.0004,120]
[349045644,1736949065607,-3016.08778057,0.0004,120]
[349045645,1736949065619,-2940.0000005,0.0004,120]
[349045646,1736949065632,-16994.48826545,0.0004,120]
[349045647,1736949065643,-1853.63406504,0.0004,30]
[349045648,1736949065655,-6146.36593496,0.0004,30]
[349045649,1736949065665,-10000.0,0.0004,120]
[349045650,1736949065674,-7779.02282635,0.0004,120]
[349045651,1736949065686,-2220.97717365,0.0004,120]
[349045652,1736949065696,-10000.0,0.0004,120]
[349045653,1736949065706,-10000.0,0.0004,120]
[349045654,1736949065716,-10000.0,0.0004,120]
[349045655,1736949065726,-10000.0,0.0004,120]
[349045656,1736949065736,-10000.0,0.0004,120]
[349045657,1736949065746,-10000.0,0.0004,120]
[349045658,1736949065756,-10000.0,0.0004,120]
[349045659,1736949065766,-1041.97888287,0.0004,120]
[349045660,1736949065827,-8958.02111713,0.0004,120]
[349045661,1736949065836,-10000.0,0.0004,120]
[349045662,1736949065846,-10000.0,0.0004,120]
[349045663,1736949065856,-10000.0,0.0004,120]
[349045664,1736949065866,-10000.0,0.0004,120]
[349045665,1736949065876,-10000.0,0.0004,120]
[349045666,1736949065885,-10000.0,0.0004,120]
[349045667,1736949065895,-10000.0,0.0004,120]
[349045668,1736949065906,-10000.0,0.0004,120]
[349045669,1736949065916,-10000.0,0.0004,120]
[349045670,1736949065926,-10000.0,0.0004,120]
[349045671,1736949065936,-10000.0,0.0004,120]
[349045672,1736949065947,-10000.0,0.0004,120]
[349045673,1736949065956,-10000.0,0.0004,120]
[349045674,1736949065967,-10000.0,0.0004,120]
[349045675,1736949065977,-10000.0,0.0004,120]
[349045676,1736949065987,-10000.0,0.0004,120]
[349045677,1736949065997,-10000.0,0.0004,120]
[349045678,1736949066008,-17433.12811102,0.0004,120]
[349045679,1736949066018,-20000.0,0.0004,120]
[349045680,1736949066031,-20000.0,0.0004,120]
[349045681,1736949066040,-20000.0,0.0004,120]
[349045682,1736949066051,-20000.0,0.0004,120]
[349045683,1736949066061,-20000.0,0.0004,120]
[349045684,1736949066071,-20000.0,0.0004,120]
[349045685,1736949066081,-20000.0,0.0004,120]
[349045686,1736949066092,-20000.0,0.0004,120]
[349045687,1736949066235,-365.26387578,0.0004,120]
[349045688,1736949066272,-19634.73612422,0.0004,120]
[349045689,1736949066284,-20000.0,0.0004,120]
[349045690,1736949066295,-77565.0,0.0004,120]
[349045691,1736949066304,-5000.0,0.0004,120]
[349045692,1736949066313,-5000.0,0.0004,120]
[349045693,1736949066324,-3605.0,0.0004,120]
[349045694,1736949066334,-4000.0,0.0004,120]
[349045695,1736949066344,-5300.0,0.0004,60]
[349045696,1736949066354,-5426.67248349,0.0004,80]
[349045697,1736949066365,-9473.51938415,0.0004,120]
[349045698,1736949066375,-100000.0,0.0004,120]
[349045699,1736949066384,-30000.0,0.0004,120]
[349045700,1736949066395,-11372.60897184,0.0004,10]
[349045701,1736949066405,-3091.00601183,0.0004,120]
[349045702,1736949066415,-3872.90340792,0.0004,120]
[349045703,1736949066426,-328.23058081,0.0004,120]
[349045704,1736949066436,-163.75921116,0.0004,120]
[349045705,1736949066447,-20000.0,0.0004,30]
[349045706,1736949066457,-12858.79606123,0.0004,120]
[349045707,1736949066467,-50000.0,0.0004,120]
[349045708,1736949066478,-8302.5127312,0.0004,60]
[349045709,1736949066488,-2448.01471355,0.0004,90]
[349045710,1736949066499,-5636.25411489,0.0004,120]
[349045711,1736949066509,-2525.16789097,0.0004,120]
[349045712,1736949066518,-59984.68232798,0.0004,30]
[349045713,1736949066529,-479.62608381,0.0004,30]
[349045714,1736949066539,-500.0,0.0004,30]
[349045715,1736949066549,-500.0,0.0004,30]
[349045716,1736949066559,-500.0,0.0004,30]
[349045717,1736949066569,-500.0,0.0004,30]
[349045718,1736949066580,-500.0,0.0004,30]
[349045719,1736949066590,-500.0,0.0004,30]
[349045720,1736949066600,-54870.65511028,0.0004,90]
[349045721,1736949066610,-5000.0,0.0004,120]
[349045722,1736949066620,-601.78,0.0004,120]
[349045723,1736949066630,-2073.25,0.0004,120]
[349045724,1736949066640,-186.950168,0.0004,14]
[349045725,1736949066650,-186.950168,0.0004,14]
[349045726,1736949066660,-40000.0,0.0004,120]
[349045727,1736949066670,-560.0,0.0004,120]
[349045728,1736949066680,-600.0,0.0004,120]
[349045729,1736949066691,-512.43,0.000401,120]
[349045730,1736949066701,-500.0,0.00040102,7]
[349045731,1736949066711,-227.4,0.00040192,120]
[349045732,1736949066720,-151.011408,0.00040198,120]
[349045733,1736949066730,-500.0,0.00040239,7]
[349045734,1736949066739,-600.0,0.00040274,60]
[349045735,1736949066750,-500.0,0.00040376,7]
[349045736,1736949066759,-43304.7083579,0.0004048,10]
[349045737,1736949066769,-2000.0,0.00040484,60]
[349045738,1736949066783,-151.011408,0.00040498,120]
[349045739,1736949066793,-1000.0,0.00040499,120]
[349045740,1736949066803,-3000.0,0.000405,2]
[349045741,1736949066813,-25000.0,0.000405,120]
[349045742,1736949066823,-973.94529319,0.000405,120]
[349045743,1736949066834,-864.86,0.00040565,2]
[349045744,1736949066844,-426.73817005,0.000406,120]
[349045745,1736949066854,-80000.0,0.000407,120]
[349045746,1736949066864,-72371.39255251,0.000407,60]
[349045747,1736949066876,-7647.82984975,0.000407,60]
[349045748,1736949066887,-1505.0,0.00040746,60]
[349045749,1736949066897,-151.011408,0.00040798,120]
[349045750,1736949066906,-1000.0,0.000408,30]
[349045751,1736949066916,-1000.0,0.000408,30]
[349045752,1736949066925,-3566.88,0.000408,60]
[349045753,1736949066935,-19443.72742225,0.000408,30]
[349045754,1736949066947,-4980.78092975,0.000408,30]
[349045755,1736949066957,-24424.508352,0.000408,30]
[349045756,1736949066966,-19844.60641425,0.000408,30]
[349045757,1736949066982,-275.4999993,0.000408,30]
[349045758,1736949066994,-694.99392695,0.000408,30]
[349045759,1736949255537,-150.0,0.00018,2]
[349045760,1736949255564,-150.0,0.00018704,2]
[349045761,1736949255589,-4700.0,0.00018705,2]
[349045762,1736949271709,-717.2344,0.00018605,2]
[349045763,1736949271735,-981.96693255,0.00018605,3]
[349045764,1736949271760,-3300.79866745,0.00018705,2]
[349045767,1736950176881,2254.0,0.00010136,12]
[349045784,1736950231883,-339.37,0.00010137,2]
[349045785,1736950231894,-550.0,0.00011,2]
[349045786,1736950231905,-600.0,0.00013,2]
[349045787,1736950231915,-650.0,0.00015,2]
[349045788,1736950231926,-339.37,0.00016813,2]
[349045789,1736950231936,-700.0,0.00017,2]
[349045790,1736950231951,-275.943261,0.0001791,2]
[349045791,1736950231961,-150.0,0.00018,2]
[349045792,1736950231972,-166.08829079,0.000185,2]
[349045793,1736950231982,-300.0,0.00018703,2]
[349045794,1736950231992,-1021.52868531,0.00018703,2]
[349045795,1736950232004,-4129.71131469,0.00018703,2]
[349045796,1736950232014,-1837.383,0.00018704,2]
[349045797,1736950232025,-182.069,0.00018704,2]
[349045798,1736950232035,-3861.77926945,0.00018704,2]
[349045799,1736950232209,-3187.80073055,0.00018704,2]
[349045800,1736950232219,-29999.99,0.00018704,2]
[349045801,1736950232229,-9999.99,0.00018704,2]
[349045802,1736950232239,-999.99,0.00018704,2]
[349045803,1736950232249,-568.73,0.00018704,2]
[349045804,1736950232259,-177.685201,0.00018946,2]
[349045805,1736950232270,-750.0,0.00019,2]
[349045806,1736950232280,-607.0,0.00020292,30]
[349045807,1736950232290,-400.0,0.00020317,2]
[349045808,1736950232301,-200.0,0.00020444,2]
[349045809,1736950232310,-250.0,0.00020692,2]
[349045810,1736950232320,-2657.31083845,0.000208,2]
[349045811,1736950232334,-70872.69249349,0.000208,2]
[349045812,1736950232346,-13578.54956806,0.000208,2]
[349045813,1736950232355,-252.06,0.000209,7]
[349045814,1736950232366,-3566.50823525,0.000209,2]
[349045815,1736950232376,-173.71,0.00020909,2]
[349045816,1736950232387,-724.27,0.00020963,2]
[349045817,1736950232396,-400.0,0.00021069,2]
[349045818,1736950232406,-23900.0,0.00021757,2]
[349045819,1736950232417,-400.0,0.00021821,2]
[349045820,1736950232427,-250.0,0.00022221,2]
[349045821,1736950232436,-3566.5082351,0.00022245,2]
[349045822,1736950232449,-3667.60490712,0.00022256,2]
[349045823,1736950232461,-5107.49509288,0.00022256,2]
[349045824,1736950232471,-1419.0,0.0002231,2]
[349045825,1736950232481,-500.0,0.00022443,2]
[349045826,1736950232491,-1419.0,0.0002254,2]
[349045827,1736950232501,-400.0,0.00022573,2]
[349045828,1736950232512,-1419.0,0.0002277,2]
[349045829,1736950232522,-1419.0,0.00023,2]
[349045830,1736950232532,-484.55988428,0.00023,2]
[349045831,1736950232541,-59093.0,0.00023057,2]
[349045832,1736950232551,-1419.0,0.0002323,2]
[349045833,1736950232561,-400.0,0.00023324,2]
[349045834,1736950232571,-908.89,0.00023347,2]
[349045835,1736950232581,-1419.0,0.0002346,2]
[349045836,1736950232591,-339.37,0.0002349,2]
[349045837,1736950232601,-3566.5082351,0.0002359,2]
[349045838,1736950232611,-1419.0,0.0002369,2]
[349045839,1736950232621,-153.98,0.000245,31]
[349045841,1736950232630,-153.98,0.000245,31]
[349045843,1736950232640,-153.98,0.000245,31]
[349045845,1736950232649,-1000.0,0.00024658,2]
[349045847,1736950232658,-3566.5082351,0.00024934,2]
[349045849,1736950232669,-2500.0,0.00024945,2]
[349045851,1736950232681,-150.0,0.00025,2]
[349045853,1736950232691,-46808.71502472,0.00025046,2]
[349045855,1736950232707,-17188.71497528,0.00025046,2]
[349045857,1736950232718,-5000.0,0.0002514,2]
[349045860,1736950232728,-603.9026,0.0002514,2]
[349045861,1736950232738,-205.098,0.00025153,2]
[349045864,1736950232749,-199.819,0.00025153,2]
[349045865,1736950232759,-570.062,0.0002524,2]
[349045868,1736950232770,-1316.558,0.0002524,2]
[349045870,1736950232781,-821.0,0.0002524,2]
[349045872,1736950232792,-673.889,0.0002524,2]
[349045874,1736950232802,-1262.237,0.0002524,2]
[349045876,1736950232813,-2949.118,0.0002524,2]
[349045878,1736950232823,-526.505,0.0002524,2]
[349045880,1736950232832,-198.173,0.0002524,2]
[349045882,1736950232842,-3925.562,0.0002524,2]
[349045883,1736950232852,-9632.0,0.0002524,2]
[349045884,1736950232861,-151.784,0.0002524,2]
[349045885,1736950232871,-1178.644,0.0002524,2]
[349045886,1736950232880,-500.0,0.00025267,120]
[349045887,1736950232890,-250.0,0.00025433,2]
[349045888,1736950232900,-733.41,0.00025454,2]
[349045890,1736950232909,-161.88,0.00025503,2]
[349045892,1736950232920,-5344.2509821,0.00025559,2]
[349045894,1736950232932,-238.9523179,0.00025559,2]
[349045897,1736950232945,-6268.51,0.00026053,2]
[349045900,1736950232954,-173.71,0.00026136,120]
[349045902,1736950232966,-1132.12,0.00026144,2]
[349045905,1736950232977,-908.89,0.00026266,2]
[349045909,1736950232988,-3566.5082351,0.00026279,2]
[349045912,1736950232999,-210.05,0.000263,14]
[349045915,1736950233009,-500.0,0.00027,120]